bitfinex/quotes_ETHUSD_20250807
["timestamp","ask_amount","ask_price","bid_price","bid_amount"]
[1754585118447,4.215,3813.5,3813.4,3.23203177]
[1754585119375,4.215,3813.5,3812.3,4.212]
[1754585119376,4.215,3813.5,3810.5,0.1]
[1754585119697,0.002,3813.5,3813.4,2.62233177]
[1754585119849,4.213,3813.5,3813.4,2.62233177]
[1754585120168,4.213,3813.5,3813.2,2.62241564]
[1754585120169,4.214,3813.5,3813.2,2.62240752]
[1754585120395,0.002,3813.5,3813.4,2.62233177]
[1754585120679,4.213,3813.5,3813.4,2.62233177]
[1754585121228,4.213,3813.5,3811.4,4.21]
[1754585121529,0.002,3813.5,3812.6,2.62288202]
[1754585121734,0.002,3813.5,3813.2,2.62246865]
[1754585121735,4.21,3813.4,3813.2,2.62246865]
[1754585122040,18.71,3813.4,3813.2,2.62246865]
[1754585122363,19.6349,3813.4,3812.6,0.4785]
[1754585122555,19.6349,3813.4,3813.1,2.622493]
[1754585122860,19.6349,3813.4,3812.6,0.4785]
[1754585122861,0.9249,3813.3,3812.6,0.4785]
[1754585123065,18.71,3813.4,3813.2,2.62241625]
[1754585123374,0.4346,3813.3,3812.1,0.4785]
[1754585123542,0.9249,3813.3,3812.8,2.62268001]
[1754585123742,0.9249,3813.3,3811.3,2.62375201]
[1754585123743,0.9249,3813.2,3811.3,2.62375201]
[1754585124042,0.9249,3813.2,3811.9,0.4785]
[1754585124043,2.62260687,3813.0,3811.9,0.4785]
[1754585124230,2.6228696,3812.7,3811.5,0.4785]
[1754585124430,0.9249,3812.6,3812.1,2.62318841]
[1754585124764,0.9249,3812.6,3810.8,2.62405255]
[1754585124765,18.708,3812.5,3811.7,3.10200132]
[1754585124970,18.708,3812.5,3811.6,0.4593357]
[1754585124971,14.5,3812.5,3812.4,2.62301962]
[1754585125168,18.707,3812.5,3812.4,2.62301962]
[1754585125374,18.707,3812.5,3811.6,0.4331]
[1754585125375,15.4249,3812.5,3811.6,2.62357015]
[1754585125596,0.002,3813.5,3811.9,0.4785]
[1754585125597,2.62242319,3813.3,3811.9,0.4785]
[1754585125810,5.37204809,3813.2,3811.9,0.4785]
[1754585125964,0.24014809,3813.1,3812.5,2.62288408]
[1754585126163,14.74014809,3813.0,3812.5,2.62288408]
[1754585126497,0.9249,3812.9,3812.5,2.6229382]
[1754585126687,5.1349,3812.8,3812.6,2.6228665]
[1754585126991,4.209,3812.7,3812.5,2.6229306]
[1754585127192,14.5,3812.6,3812.5,2.6229306]
[1754585127710,14.5,3812.6,3811.0,0.004]
[1754585127711,20.62136,3812.6,3811.0,0.004]
[1754585127913,2.58854961,3812.5,3811.0,0.004]
[1754585128095,3.0196714,3812.4,3811.0,0.004]
[1754585128401,14.5,3811.7,3811.0,0.004]
[1754585128603,2.62391435,3811.1,3811.0,0.004]
[1754585128771,6.87558575,3811.1,3811.0,0.004]
[1754585128972,8.73505106,3811.1,3811.0,0.004]
[1754585129391,5.2924,3811.1,3811.0,0.004]
[1754585129593,7.45201435,3811.1,3811.0,0.004]
[1754585129793,7.45201435,3811.1,3810.0,25.0]
[1754585129794,10.92033797,3811.1,3810.0,25.0]
[1754585130004,0.41189714,3811.0,3810.0,25.0]
[1754585130172,4.254,3810.9,3810.5,2.62427555]
[1754585130374,18.755,3810.8,3810.7,2.62418978]
[1754585130577,3.0,3811.6,3810.7,1.56522484]
[1754585130578,0.1312,3811.6,3810.7,1.56522484]
[1754585130769,2.62260949,3813.0,3811.5,0.1312]
[1754585130770,4.256,3812.4,3811.5,0.1312]
[1754585131004,18.756,3812.3,3811.6,3.56936001]
[1754585131224,4.49709001,3812.2,3811.7,2.62350132]
[1754585131515,0.24009001,3812.1,3812.0,2.62327644]
[1754585131875,0.24009001,3812.1,3812.0,2.62329485]
[1754585132069,4.49509001,3812.1,3812.0,2.75449485]
[1754585132271,4.49509001,3812.1,3812.0,0.1312]
[1754585132472,4.49509001,3812.1,3812.0,2.75449485]
[1754585132909,4.50009001,3812.1,3812.0,2.75449485]
[1754585133207,4.26,3812.1,3812.0,2.75449485]
[1754585133817,4.5001238,3812.1,3812.0,0.1312]
[1754585133986,4.5000869,3812.1,3812.0,0.1312]
[1754585134381,4.5000869,3812.1,3812.0,2.75449485]
[1754585134621,0.2400869,3812.1,3812.0,2.75449485]
[1754585134770,0.4683,3812.9,3812.0,2.75449485]
[1754585134771,0.1312,3813.4,3812.2,2.62315723]
[1754585135112,0.4683,3814.0,3812.2,2.62315723]
[1754585135113,0.24017469,3812.9,3812.8,2.62274443]
[1754585135274,4.257,3812.9,3812.8,3.69974443]
[1754585135493,4.257,3812.9,3812.8,3.23304443]
[1754585135683,4.257,3812.9,3812.8,2.75394443]
[1754585136005,4.256,3812.9,3812.8,2.75394443]
[1754585136702,14.5,3813.4,3811.7,10.93229218]
[1754585136871,4.256,3813.3,3812.8,1.077]
[1754585137070,4.256,3813.3,3812.8,3.56853288]
[1754585137271,4.256,3813.3,3813.2,0.1312]
[1754585137519,4.7169,3813.3,3813.2,0.1312]
[1754585138007,4.256,3813.3,3813.2,0.1312]
[1754585138814,14.5,3813.4,3813.2,0.1312]
[1754585138974,4.251,3813.3,3813.2,0.1312]
[1754585139603,14.5,3813.4,3813.3,2.62240054]
[1754585139909,0.002,3813.7,3813.4,2.62233177]
[1754585140205,0.002,3813.7,3813.3,0.4791]
[1754585140206,0.4609,3813.4,3813.3,2.75360054]
[1754585140503,4.25,3813.4,3813.3,2.75360054]
[1754585140878,18.748,3813.4,3813.3,2.75358361]
[1754585141097,18.748,3813.4,3813.3,0.1312]
[1754585141410,21.81462601,3813.4,3813.1,0.1312]
[1754585141705,21.34632601,3813.4,3813.1,0.1312]
[1754585142081,0.4609,3813.3,3812.7,2.62279313]
[1754585142281,0.4609,3813.3,3812.3,0.4667]
[1754585142282,0.4609,3813.3,3812.9,0.1312]
[1754585142606,5.1752,3813.2,3812.9,0.1312]
[1754585142977,0.9292,3813.1,3811.9,0.9458]
[1754585143176,1.0604,3813.1,3812.7,2.62280229]
[1754585143376,4.244,3813.0,3812.9,2.62267565]
[1754585143585,14.5,3813.4,3812.7,2.62279361]
[1754585143811,4.244,3813.3,3812.9,0.1312]
[1754585144315,2.62260687,3813.0,3812.9,0.1312]
[1754585144520,2.62269604,3812.9,3812.3,0.1312]
[1754585144684,0.0196714,3812.8,3811.5,3.10272927]
[1754585145010,2.62302724,3812.4,3812.2,0.1312]
[1754585145212,19.6732,3812.3,3811.2,0.001]
[1754585145534,4.244,3812.2,3812.1,0.1312]
[1754585146320,14.5,3812.3,3812.2,2.62315723]
[1754585146514,14.5,3812.3,3812.1,3.70017895]
[1754585146819,14.5,3812.3,3812.2,3.10225723]
[1754585146989,14.5,3812.3,3812.2,3.56895723]
[1754585147316,18.74,3812.3,3812.2,3.56895723]
[1754585147816,18.739,3812.3,3812.1,0.1312]
[1754585148153,14.5,3812.3,3811.6,0.4791]
[1754585148352,4.239,3812.2,3811.7,2.62343869]
[1754585148551,4.239,3812.2,3811.6,0.4791]
[1754585149051,4.239,3812.2,3811.7,2.62350082]
[1754585149355,14.5,3812.3,3811.4,2.62366419]
[1754585149554,14.5,3812.3,3811.5,2.62360018]
[1754585149555,4.247,3812.1,3811.5,2.62360018]
[1754585149855,2.62330845,3812.0,3811.3,2.62376199]
[1754585150038,2.95316127,3812.0,3811.2,0.001]
[1754585150222,14.5,3812.3,3811.2,0.001]
[1754585150223,4.248,3811.9,3811.2,0.001]
[1754585150419,15.4292,3812.3,3811.2,0.001]
[1754585150420,4.248,3811.8,3811.2,0.001]
[1754585150631,4.248,3811.7,3811.2,0.001]
[1754585150834,4.248,3811.7,3810.3,2.62439749]
[1754585150835,2.62460302,3810.1,3810.0,25.0]
[1754585151046,8.07026332,3810.1,3810.0,25.0]
[1754585151247,22.30780302,3810.1,3810.0,25.0]
[1754585151555,14.9609,3810.1,3810.0,25.0]
[1754585151721,21.50160302,3810.1,3810.0,25.0]
[1754585151925,22.43080302,3810.1,3810.0,25.0]
[1754585152463,14.9609,3810.1,3810.0,27.62467191]
[1754585152664,0.4609,3811.5,3810.0,27.63505584]
[1754585152826,4.378,3811.4,3810.7,2.62418352]
[1754585153130,4.378,3811.4,3810.1,0.9458]
[1754585153131,14.5,3811.3,3810.3,2.62444899]
[1754585153333,14.5,3811.3,3810.7,2.6241692]
[1754585153563,14.5,3811.3,3810.9,2.62400423]
[1754585153735,14.5,3811.3,3810.4,3.57018471]
[1754585153929,4.378,3811.2,3810.9,2.62399933]
[1754585154354,4.378,3811.2,3811.0,2.62397162]
[1754585154539,14.5,3811.3,3811.1,2.62385971]
[1754585154860,14.5,3811.3,3811.2,2.6238455]
[1754585155060,15.05473107,3811.3,3811.2,2.6238455]
[1754585155239,18.875,3811.3,3811.2,2.6238455]
[1754585155440,18.875,3811.3,3810.5,2.62432751]
[1754585155663,14.5,3811.3,3811.2,2.6238455]
[1754585155871,18.872,3811.3,3811.2,2.6238455]
[1754585156054,14.5,3811.3,3811.2,2.6238455]
[1754585156255,18.87,3811.3,3811.2,2.6238455]
[1754585156789,14.5,3811.3,3811.2,2.6238455]
[1754585157093,4.369,3811.3,3811.2,4.09442798]
[1754585157288,6.7619,3812.2,3811.9,2.62336351]
[1754585157595,14.74063244,3812.0,3811.9,2.62336367]
[1754585158004,4.367,3812.0,3811.9,2.62336367]
[1754585158204,6.301,3812.2,3811.9,2.62336367]
[1754585158405,6.301,3812.2,3811.9,2.62330212]
[1754585158406,4.60760202,3812.1,3811.9,2.62330212]
[1754585158704,14.5,3812.0,3811.9,2.62330212]
[1754585159060,14.5,3812.0,3811.8,0.1312]
[1754585159264,4.365,3811.9,3811.8,0.1312]
[1754585159703,4.365,3811.9,3811.8,2.75463249]
[1754585160281,14.5,3812.0,3811.9,2.62336367]
[1754585160504,18.858,3812.0,3811.8,0.1312]
[1754585160686,14.5,3812.0,3811.8,0.1312]
[1754585160892,4.357,3811.9,3811.7,2.75467141]
[1754585161205,4.357,3811.9,3811.8,2.62343249]
[1754585161407,4.357,3811.9,3811.7,2.75468439]
[1754585161724,4.356,3811.8,3811.7,2.75470132]
[1754585161871,14.5,3812.0,3811.8,2.62336526]
[1754585162075,4.353,3811.9,3811.8,2.62336526]
[1754585162282,4.353,3811.9,3811.7,0.1312]
[1754585162283,4.353,3811.9,3811.7,2.75468705]
[1754585162460,14.5,3812.0,3811.7,2.75468705]
[1754585162799,4.351,3811.9,3811.7,2.75464861]
[1754585162974,14.5,3812.0,3811.8,2.62343249]
[1754585163291,14.5,3812.0,3811.7,2.75467863]
[1754585163467,4.349,3811.9,3811.7,2.75467863]
[1754585163668,14.5,3812.0,3811.9,2.62336367]
[1754585163878,10.93429218,3813.5,3812.5,2.62289274]
[1754585163879,0.4781,3812.9,3812.5,2.62289274]
[1754585164085,3.0,3812.7,3812.5,2.62292133]
[1754585164285,18.847,3812.6,3812.3,0.1312]
[1754585164598,18.847,3812.6,3812.2,2.62314213]
[1754585164599,4.346,3812.5,3812.4,2.622976]
[1754585164797,14.5,3812.6,3812.5,3.05315081]
[1754585164962,4.345,3812.6,3812.5,3.52105081]
[1754585165158,4.345,3812.6,3812.5,4.27977651]
[1754585165387,4.345,3812.6,3812.5,3.65224808]
[1754585165587,14.5,3813.2,3812.5,1.0293]
[1754585165901,4.345,3813.1,3813.0,2.62260687]
[1754585166097,14.5,3813.2,3813.1,2.62253809]
[1754585166395,14.5,3813.2,3812.8,2.75394254]
[1754585166396,4.344,3813.1,3812.8,2.75394254]
[1754585166597,0.4781,3813.0,3812.8,2.75394254]
[1754585166762,4.342,3812.9,3812.8,0.1312]
[1754585166965,16.62821,3813.2,3812.8,0.1312]
[1754585167165,14.5,3813.2,3813.1,2.62253809]
[1754585167380,14.5,3813.2,3813.1,2.75373809]
[1754585167798,6.302,3813.3,3813.2,2.62246931]
[1754585168100,10.64,3813.3,3813.2,3.52056931]
[1754585168302,25.139,3813.3,3813.2,2.62246931]
[1754585168484,25.139,3813.3,3813.1,0.1312]
[1754585168805,28.1312,3813.3,3813.1,0.1312]
[1754585169598,27.6531,3813.3,3813.1,0.1312]
[1754585169802,20.802,3813.3,3813.2,2.62246931]
[1754585170002,18.834,3813.3,3813.2,0.1312]
[1754585170389,14.5,3813.3,3813.2,0.1312]
[1754585170589,18.832,3813.3,3813.2,0.1312]
[1754585170813,19.3101,3813.3,3813.1,0.1312]
[1754585171012,18.832,3813.3,3813.1,2.75371751]
[1754585171199,18.832,3813.3,3813.1,0.1312]
[1754585171392,4.33,3813.2,3813.1,0.1312]
[1754585172819,4.33,3813.2,3812.9,2.75385114]
[1754585173020,17.12392668,3813.3,3813.0,2.62260232]
[1754585173184,4.329,3813.2,3813.0,2.62260232]
[1754585173588,4.323,3813.1,3813.0,2.62260232]
[1754585174016,4.323,3813.1,3812.9,0.1312]
[1754585174318,4.323,3813.1,3812.6,2.62285868]
[1754585174319,0.4781,3813.0,3812.7,2.75400467]
[1754585174524,14.5,3813.3,3812.8,2.62267925]
[1754585174707,5.2561,3813.2,3812.7,0.1312]
[1754585174908,1.98873,3813.1,3812.7,0.1312]
[1754585175098,4.321,3813.0,3812.8,2.62273233]
[1754585175302,2.46683,3813.1,3812.7,0.1312]
[1754585175504,4.321,3813.0,3812.7,0.1312]
[1754585175701,2.46683,3813.1,3812.7,0.1312]
[1754585175901,6.38537961,3813.0,3812.7,0.1312]
[1754585176121,5.90727961,3813.0,3812.7,2.75397011]
[1754585176295,5.90727961,3813.0,3812.7,0.1312]
[1754585176496,5.90727961,3813.0,3812.8,2.62273916]
[1754585176724,5.90727961,3813.0,3812.7,0.1312]
[1754585177331,4.317,3812.9,3812.7,0.1312]
[1754585177524,2.62313055,3812.3,3811.8,0.001]
[1754585177729,2.62336367,3811.9,3811.8,0.001]
[1754585177899,2.62336367,3811.9,3810.0,26.68925584]
[1754585177900,3.0,3811.8,3810.0,26.68925584]
[1754585178102,2.62370782,3811.4,3810.4,0.001]
[1754585178313,3.0,3811.5,3810.4,0.001]
[1754585178314,3.0,3811.1,3810.4,0.001]
[1754585178514,5.62432751,3810.5,3810.4,0.001]
[1754585178713,10.06952751,3810.5,3810.4,0.001]
[1754585178913,11.00462751,3810.5,3810.4,0.001]
[1754585179117,12.62993306,3810.5,3810.4,0.001]
[1754585179512,8.31593306,3810.5,3810.4,0.001]
[1754585179841,0.1312,3810.5,3810.4,0.001]
[1754585180048,3.0,3811.4,3810.4,0.8991]
[1754585180345,0.4781,3811.9,3810.5,0.4679]
[1754585180346,4.5606744,3811.3,3810.5,0.4679]
[1754585180519,4.0329187,3811.9,3810.4,0.001]
[1754585180520,4.5606744,3811.2,3810.4,0.001]
[1754585180719,4.32,3811.1,3810.4,0.001]
[1754585180942,4.7981,3811.1,3810.4,0.001]
[1754585181140,1.00361,3811.0,3810.4,0.001]
[1754585181342,6.96374971,3810.9,3810.4,0.001]
[1754585181503,0.55468756,3810.8,3810.4,0.001]
[1754585181710,0.4781,3810.8,3810.4,0.001]
[1754585181904,0.98251,3811.0,3810.4,0.001]
[1754585181905,3.0,3811.0,3810.4,3.09329391]
[1754585182131,3.0,3811.0,3810.4,0.4689]
[1754585182132,4.318,3810.9,3810.4,0.4689]
[1754585182322,4.318,3810.9,3810.4,0.001]
[1754585182706,0.0196714,3810.9,3810.5,2.62432114]
[1754585182915,4.318,3810.8,3810.6,2.62425864]
[1754585183242,4.318,3810.8,3810.4,0.001]
[1754585183422,4.315,3810.7,3810.4,0.001]
[1754585183628,4.323,3810.6,3810.4,0.001]
[1754585183930,4.8011,3810.6,3810.4,0.001]
[1754585184243,6.55942751,3810.5,3810.4,0.001]
[1754585184746,6.10242751,3810.5,3810.4,0.001]
[1754585184913,11.43142751,3810.5,3810.4,0.001]
[1754585185244,5.62460302,3810.1,3810.0,23.79031316]
[1754585185542,18.29816332,3810.1,3810.0,18.1164574]
[1754585185787,18.29816332,3810.1,3810.0,17.23186474]
[1754585186071,18.29816332,3810.1,3807.1,0.25]
[1754585186072,2.62533873,3809.1,3807.6,0.8981]
[1754585186237,12.1235603,3810.1,3807.1,0.25]
[1754585186238,0.55,3808.9,3807.1,0.25]
[1754585186570,3.0,3808.0,3807.1,0.25]
[1754585186733,2.62636834,3807.6,3807.1,0.25]
[1754585186935,5.62660222,3807.2,3807.1,0.25]
[1754585187266,10.88670222,3807.2,3807.1,0.25]
[1754585187471,6.56170222,3807.2,3807.1,0.25]
[1754585187942,2.62674021,3807.0,3804.9,0.1366896]
[1754585188144,2.62674021,3807.0,3803.3,0.2495]
[1754585188145,3.0,3806.8,3803.3,0.2495]
[1754585188344,3.55,3805.6,3803.3,0.7198]
[1754585188660,3.0,3805.3,3803.3,0.2495]
[1754585188965,5.38,3805.2,3803.3,0.7198]
[1754585189187,3.0,3805.1,3804.4,2.62852285]
[1754585189333,2.62735731,3806.2,3804.8,2.62821784]
[1754585189334,0.4761,3806.0,3804.8,2.62821784]
[1754585189549,2.62763749,3805.7,3804.6,2.6283972]
[1754585189754,0.937,3805.6,3804.5,0.26285229]
[1754585189962,3.0,3805.1,3803.8,0.9404]
[1754585190191,4.457,3805.6,3804.1,0.1312]
[1754585190192,4.457,3805.0,3804.1,0.1312]
[1754585190485,4.457,3805.0,3803.3,0.2495]
[1754585190486,4.457,3804.9,3803.4,0.02629226]
[1754585190696,3.4957714,3804.8,3803.3,0.2495]
[1754585190875,3.4761,3804.8,3804.0,2.62880392]
[1754585191079,3.4761,3804.8,3803.3,0.7196]
[1754585191080,0.8394,3804.7,3803.3,0.2495]
[1754585191287,6.5654401,3804.6,3803.3,0.2495]
[1754585191459,3.0,3804.4,3803.3,0.2495]
[1754585191785,6.0456714,3804.5,3803.3,0.2495]
[1754585191786,17.11151866,3803.4,3803.3,0.2495]
[1754585191986,6.17943388,3803.1,3803.0,100.0]
[1754585192209,6.17943388,3803.1,3800.0,0.14378479]
[1754585192210,2.62977272,3802.7,3800.0,0.14378479]
[1754585192495,33.0,3803.0,3800.0,0.14378479]
[1754585192496,3.55,3802.5,3800.0,0.14378479]
[1754585192699,0.4761,3802.9,3800.6,2.63115841]
[1754585192989,2.62991794,3802.4,3800.0,2.77534694]
[1754585193299,0.55,3802.6,3800.0,2.77534694]
[1754585193300,3.0,3801.2,3800.4,2.63128045]
[1754585193451,3.0,3801.2,3799.6,0.13672884]
[1754585193452,0.4761,3801.2,3799.6,0.20698363]
[1754585193656,4.594,3801.1,3799.6,0.20698363]
[1754585193856,4.594,3801.0,3799.7,2.63178672]
[1754585194057,4.594,3801.0,3799.6,0.20698363]
[1754585194058,2.72859153,3804.4,3799.8,0.28387704]
[1754585194256,3.41756749,3805.6,3799.8,0.28387704]
[1754585194257,5.533,3803.3,3799.9,0.02631648]
[1754585194574,5.533,3803.3,3799.9,4.62631648]
[1754585194776,5.533,3803.3,3801.0,2.630866]
[1754585194777,2.62959092,3802.9,3801.0,2.630866]
[1754585194977,0.4761,3803.2,3801.2,0.55]
[1754585195188,0.4761,3803.8,3801.2,0.55]
[1754585195367,0.4761,3803.8,3801.3,4.599]
[1754585195715,0.4761,3803.8,3801.1,0.28939477]
[1754585195716,4.598,3803.3,3801.4,0.9404]
[1754585195993,4.598,3803.3,3799.8,0.28387704]
[1754585195994,0.937,3803.2,3800.9,0.4701]
[1754585196291,3.0,3802.8,3800.9,0.4701]
[1754585196493,3.12521264,3803.1,3800.9,0.4701]
[1754585196494,2.62992349,3802.4,3801.0,2.63086951]
[1754585196657,2.62992349,3802.4,3800.9,0.4701]
[1754585196658,3.0,3802.4,3801.1,0.35712695]
[1754585196858,0.4761,3802.3,3800.9,0.4701]
[1754585197067,0.4761,3802.3,3800.2,2.63142583]
[1754585197068,2.6302444,3802.0,3800.5,0.4701]
[1754585197270,5.0851,3801.9,3800.5,0.4701]
[1754585197473,4.609,3801.8,3800.5,0.4701]
[1754585197670,3.0,3801.7,3799.0,0.13667085]
[1754585198007,3.0,3801.3,3799.2,0.4701]
[1754585198228,3.0,3801.3,3798.1,0.4701]
[1754585198229,5.5726714,3801.2,3798.1,0.4701]
[1754585198506,4.3210787,3801.1,3798.2,0.16288512]
[1754585198668,4.3210787,3801.1,3800.3,0.001]
[1754585198669,3.937,3801.1,3800.3,0.001]
[1754585198871,0.4761,3801.0,3800.3,0.001]
[1754585199203,2.63109105,3800.8,3800.3,0.001]
[1754585199378,2.63103004,3800.8,3800.3,0.001]
[1754585199579,0.4761,3800.7,3800.3,0.001]
[1754585199779,4.623,3800.9,3800.3,0.001]
[1754585199780,4.619,3800.8,3800.3,0.001]
[1754585199980,0.790896,3801.1,3801.0,2.6308866]
[1754585200308,2.76250196,3800.4,3800.3,0.001]
[1754585200607,7.38150196,3800.4,3800.3,0.001]
[1754585200815,8.31850196,3800.4,3800.3,0.001]
[1754585201230,11.31850196,3800.4,3800.3,0.001]
[1754585201532,6.69950196,3800.4,3800.3,1e-08]
[1754585201690,11.32850196,3800.4,3800.3,1e-08]
[1754585201889,6.69950196,3800.4,3800.3,1e-08]
[1754585202209,11.32950196,3800.4,3798.2,0.132]
[1754585202524,14.5,3798.3,3797.9,2.76500808]
[1754585202824,0.132,3798.1,3797.9,0.53982422]
[1754585203124,0.132,3798.1,3797.7,2.6331586]
[1754585203282,14.5,3798.3,3798.2,2.63282607]
[1754585203805,14.5,3798.3,3798.2,3.23492607]
[1754585204019,14.5,3798.3,3797.2,0.4701]
[1754585204332,14.5,3798.3,3797.7,2.63312019]
[1754585204497,14.5,3798.3,3797.8,2.63309958]
[1754585204697,14.5,3798.3,3798.1,2.63289484]
[1754585204908,14.5,3798.3,3797.6,2.63319752]
[1754585205117,14.5,3798.3,3797.6,2.8965296]
[1754585205324,14.5,3798.3,3796.3,2.63410934]
[1754585205325,0.4761,3798.2,3796.4,0.4701]
[1754585205529,0.4761,3798.2,3796.5,0.02634005]
[1754585205697,14.5,3797.7,3796.5,0.02634005]
[1754585205900,14.5,3797.7,3797.6,2.63324204]
[1754585206198,15.04662718,3797.7,3797.6,4.65030011]
[1754585206613,15.04662718,3797.7,3794.9,2.77200422]
[1754585206614,15.04662718,3797.7,3797.2,0.55]
[1754585206828,0.54662718,3797.6,3797.5,3.18325416]
[1754585207127,0.54662718,3797.6,3797.5,4.12365416]
[1754585207335,0.54662718,3797.6,3797.5,3.18325416]
[1754585207548,0.54662718,3797.6,3797.5,2.63331138]
[1754585207693,0.54662718,3797.6,3797.1,0.55]
[1754585207888,2.27574839,3797.4,3796.8,0.4703]
[1754585208131,2.27574839,3797.2,3796.7,0.4701]
[1754585208331,5.18418013,3797.3,3796.2,0.4703]
[1754585208332,2.82192852,3797.1,3796.8,2.63373237]
[1754585208533,2.82192852,3797.1,3796.2,0.9404]
[1754585208534,4.64064064,3797.0,3796.9,2.63369018]
[1754585208704,0.54618013,3797.0,3796.9,2.63369018]
[1754585209026,0.54618013,3797.0,3796.5,0.02634005]
[1754585209247,0.54618013,3797.0,3796.2,0.9404]
[1754585209248,2.36464371,3796.9,3796.6,0.9404]
[1754585209394,0.54481559,3796.8,3796.6,0.9404]
[1754585209601,2.27574839,3797.3,3796.6,0.9404]
[1754585209602,0.54481559,3796.7,3796.6,2.63393562]
[1754585209796,0.54481559,3796.7,3795.9,2.63440685]
[1754585209797,0.54481559,3796.7,3796.5,3.18396431]
[1754585210016,0.54481559,3796.6,3796.5,3.184005]
[1754585210219,0.54481559,3796.6,3796.4,2.63406372]
[1754585210544,4.634,3796.8,3795.7,0.4701]
[1754585210545,15.04481559,3796.5,3795.7,0.4701]
[1754585210744,15.04481559,3796.5,3794.4,4.633]
[1754585210745,1.02091559,3796.4,3794.7,2.6351885]
[1754585210948,1.02091559,3796.4,3794.4,4.633]
[1754585210949,0.54481559,3796.3,3795.9,2.63441481]
[1754585211113,14.5,3796.5,3794.9,2.63511237]
[1754585211114,0.54481559,3796.2,3796.1,2.63428255]
[1754585211315,19.132,3796.5,3796.1,0.4703]
[1754585211514,19.132,3796.5,3795.0,3.0]
[1754585211515,0.54401641,3796.4,3795.3,0.4703]
[1754585211733,19.132,3796.5,3795.5,0.4701]
[1754585211978,0.54401323,3796.4,3796.2,2.63420734]
[1754585212115,19.132,3796.5,3796.3,2.63409188]
[1754585212316,4.629,3796.4,3796.3,3.10424377]
[1754585212548,5.16265287,3796.4,3796.3,2.63414377]
[1754585212711,5.16265287,3796.4,3795.9,2.63436346]
[1754585212914,5.16265287,3796.4,3795.6,0.001]
[1754585212915,0.54375287,3796.3,3795.6,0.001]
[1754585213149,0.54375287,3796.2,3795.8,2.63446211]
[1754585213340,1.01985287,3796.1,3795.6,0.001]
[1754585213649,6.9857738,3796.0,3795.6,0.001]
[1754585213956,0.132,3795.8,3795.6,0.001]
[1754585214154,5.16675287,3795.7,3795.6,2.63562957]
[1754585214657,5.16675287,3795.7,3795.6,0.001]
[1754585214814,20.60375287,3795.7,3793.7,0.4701]
[1754585215015,0.132,3794.4,3793.9,0.132]
[1754585215241,0.54375287,3794.3,3794.2,0.1513]
[1754585215442,0.54375287,3794.3,3794.2,0.0193]
[1754585215657,19.67975287,3794.3,3794.2,0.0193]
[1754585215891,19.136,3794.3,3794.2,2.6549017]
[1754585216091,19.139,3794.3,3794.2,0.0193]
[1754585216309,19.139,3794.3,3792.3,2.6368872]
[1754585216310,19.6151,3794.3,3792.6,0.4701]
[1754585216590,19.139,3794.3,3792.8,2.63657456]
[1754585216799,19.139,3794.3,3792.7,0.4703]
[1754585216800,4.7006714,3794.2,3792.7,0.4703]
[1754585216942,14.9761,3794.3,3793.2,2.63629297]
[1754585216943,5.1571,3794.1,3793.2,2.63629297]
[1754585217155,6.8021,3794.0,3791.8,0.7198]
[1754585217350,4.704,3793.9,3793.6,2.63601493]
[1754585217567,4.704,3793.8,3793.7,2.63594907]
[1754585217769,6.326,3794.0,3792.7,2.63663639]
[1754585217996,19.203,3793.8,3792.7,0.55]
[1754585218165,19.203,3793.8,3792.6,0.4701]
[1754585218585,0.4842,3793.7,3792.6,0.4701]
[1754585218796,19.203,3793.8,3793.1,2.63631412]
[1754585218797,4.707,3793.6,3793.1,2.63631412]
[1754585218984,4.707,3793.6,3791.8,0.2495]
[1754585218985,0.4842,3793.5,3792.0,0.4612]
[1754585219181,0.4842,3793.5,3793.4,0.001]
[1754585219385,5.1982,3793.5,3793.4,0.001]
[1754585219801,4.8221,3793.5,3793.4,0.001]
[1754585219999,7.94138804,3793.5,3793.4,0.001]
[1754585220209,0.4842,3793.5,3793.4,0.001]
[1754585220526,5.2002,3793.5,3793.4,0.001]
[1754585220872,8.50509764,3793.5,3793.4,0.001]
[1754585221071,11.49442624,3793.5,3793.4,0.001]
[1754585221485,21.47146594,3793.5,3793.4,0.001]
[1754585221677,26.19746594,3793.5,3793.4,0.001]
[1754585221873,21.57856594,3793.5,3793.4,0.001]
[1754585222079,19.9224,3793.5,3793.4,0.001]
[1754585222376,22.55848804,3793.5,3793.4,0.001]
[1754585222599,2.63615753,3793.4,3791.8,0.2495]
[1754585222802,2.63720034,3791.9,3791.8,0.2495]
[1754585223117,14.43027174,3791.9,3791.8,0.2495]
[1754585223276,31.91060034,3791.9,3791.8,0.2495]
[1754585223477,25.575,3791.9,3791.8,0.2495]
[1754585223672,25.575,3791.9,3791.4,2.63753431]
[1754585223673,19.245,3791.9,3791.4,2.63753431]
[1754585223988,4.745,3791.9,3791.4,0.5275172]
[1754585224191,3.0,3792.7,3791.0,0.556546]
[1754585224389,19.7538714,3792.6,3791.4,2.63751318]
[1754585224593,19.7538714,3792.6,3791.1,0.4963]
[1754585224594,19.7342,3792.6,3791.1,0.4963]
[1754585224791,19.7342,3792.6,3791.0,0.006546]
[1754585224792,0.4842,3792.5,3791.0,0.006546]
[1754585225005,0.4842,3792.5,3791.0,0.556546]
[1754585225206,4.764,3792.4,3791.0,0.556546]
[1754585225416,0.4842,3792.5,3791.2,0.55]
[1754585225627,14.5,3792.6,3791.4,0.55]
[1754585225837,14.5,3792.6,3792.5,2.63678312]